[Event "*** Titled Tuesday Blitz"]
[Site "Chess.com"]
[Date "2021.02.09"]
[Round "3"]
[White "Nikolaj_6"]
[Black "dopolian"]
[Result "1-0"]
[WhiteElo "2643"]
[BlackElo "2419"]
[TimeControl "180+1"]
[EndTime "10:28:31 PST"]
[Termination "Nikolaj_6 won by resignation"]

1. e4 {[%clk 0:03:00.9]} 1... e5 {[%clk 0:02:57.5]} 2. Nf3 {[%clk 0:03:00.7]}
2... Nc6 {[%clk 0:02:57.7]} 3. Bb5 {[%clk 0:03:00.7]} 3... a6 {[%clk 0:02:56.2]}
4. Ba4 {[%clk 0:03:00.8]} 4... Nf6 {[%clk 0:02:55.9]} 5. Qe2 {[%clk 0:03:00.7]}
5... b5 {[%clk 0:02:55.4]} 6. Bb3 {[%clk 0:03:00.5]} 6... Bc5 {[%clk 0:02:56.1]}
7. a4 {[%clk 0:02:59.9]} 7... Rb8 {[%clk 0:02:47.6]} 8. axb5 {[%clk 0:02:59.2]}
8... axb5 {[%clk 0:02:48.5]} 9. d3 {[%clk 0:02:58.9]} 9... h6 {[%clk 0:02:44.2]}
10. Be3 {[%clk 0:02:56.9]} 10... Bxe3 {[%clk 0:02:41.3]} 11. fxe3 {[%clk
0:02:57]} 11... O-O {[%clk 0:02:40]} 12. O-O {[%clk 0:02:56.3]} 12... d5 {[%clk
0:02:39.5]} 13. exd5 {[%clk 0:02:42]} 13... Nxd5 {[%clk 0:02:40.4]} 14. Nbd2
{[%clk 0:02:25.8]} 14... Be6 {[%clk 0:02:21.3]} 15. Qf2 {[%clk 0:02:21.5]} 15...
Qe7 {[%clk 0:02:12.3]} 16. Nh4 {[%clk 0:02:12.9]} 16... Nxe3 {[%clk 0:02:06.1]}
17. Ng6 {[%clk 0:01:36.9]} 17... fxg6 {[%clk 0:01:59.7]} 18. Qxe3 {[%clk
0:01:36.3]} 18... Bxb3 {[%clk 0:01:44.9]} 19. Nxb3 {[%clk 0:01:34.6]} 19...
Rxf1+ {[%clk 0:01:43.6]} 20. Rxf1 {[%clk 0:01:33.1]} 20... Rf8 {[%clk
0:01:43.9]} 21. Rxf8+ {[%clk 0:01:24.4]} 21... Qxf8 {[%clk 0:01:34.8]} 22. Qe4
{[%clk 0:01:22.1]} 22... Qd6 {[%clk 0:01:29.5]} 23. h3 {[%clk 0:01:16.5]} 23...
Nd4 {[%clk 0:01:24.8]} 24. Nxd4 {[%clk 0:01:09.9]} 24... Qxd4+ {[%clk
0:01:23.6]} 25. Qxd4 {[%clk 0:01:10.1]} 25... exd4 {[%clk 0:01:24.5]} 26. Kf2
{[%clk 0:01:08.5]} 26... Kf7 {[%clk 0:01:18.7]} 27. Kf3 {[%clk 0:01:08]} 27...
Ke6 {[%clk 0:01:16]} 28. Ke4 {[%clk 0:01:08.1]} 28... c5 {[%clk 0:01:09.7]} 29.
b4 {[%clk 0:01:04.5]} 29... cxb4 {[%clk 0:00:40.6]} 30. Kxd4 {[%clk 0:01:02.4]}
30... Kd6 {[%clk 0:00:31.7]} 31. g3 {[%clk 0:00:57.3]} 31... g5 {[%clk
0:00:30.1]} 32. Ke4 {[%clk 0:00:51.4]} 32... Ke6 {[%clk 0:00:24.8]} 33. d4
{[%clk 0:00:49.8]} 33... g6 {[%clk 0:00:19.7]} 34. d5+ {[%clk 0:00:47.3]} 34...
Kd6 {[%clk 0:00:20.3]} 35. Kd4 {[%clk 0:00:46.9]} 35... h5 {[%clk 0:00:15.7]}
36. g4 {[%clk 0:00:46.4]} 36... hxg4 {[%clk 0:00:07.7]} 37. hxg4 {[%clk
0:00:47.3]} 37... b3 {[%clk 0:00:02.2]} 38. cxb3 {[%clk 0:00:46.6]} 38... b4
{[%clk 0:00:02.2]} 39. Kc4 {[%clk 0:00:45.8]} 39... Ke5 {[%clk 0:00:02.7]} 40.
Kc5 {[%clk 0:00:45.3]} 1-0

[Event "*** Titled Tuesday Blitz"]
[Site "Chess.com"]
[Date "2021.02.09"]
[Round "3"]
[White "volunteers1998"]
[Black "Akhayan"]
[Result "1-0"]
[WhiteElo "2052"]
[BlackElo "2285"]
[TimeControl "180+1"]
[EndTime "10:28:33 PST"]
[Termination "volunteers1998 won by resignation"]

1. e4 {[%clk 0:03:00.9]} 1... e6 {[%clk 0:02:59.8]} 2. Nf3 {[%clk 0:03:00.2]}
2... d5 {[%clk 0:02:58.9]} 3. Nc3 {[%clk 0:02:58.5]} 3... Nf6 {[%clk 0:02:58.2]}
4. e5 {[%clk 0:02:55.9]} 4... Nfd7 {[%clk 0:02:58.5]} 5. d4 {[%clk 0:02:54.3]}
5... c5 {[%clk 0:02:58]} 6. dxc5 {[%clk 0:02:49.5]} 6... Nc6 {[%clk 0:02:57.7]}
7. Bf4 {[%clk 0:02:46.3]} 7... Nxc5 {[%clk 0:02:56.7]} 8. Bd3 {[%clk 0:02:41.7]}
8... Be7 {[%clk 0:02:56.3]} 9. O-O {[%clk 0:02:38.6]} 9... Nxd3 {[%clk
0:02:55.3]} 10. Qxd3 {[%clk 0:02:36.2]} 10... O-O {[%clk 0:02:54.3]} 11. Ne2
{[%clk 0:02:30.6]} 11... a6 {[%clk 0:02:46.5]} 12. Ned4 {[%clk 0:02:27]} 12...
Nxd4 {[%clk 0:02:38]} 13. Nxd4 {[%clk 0:02:23.3]} 13... Qd7 {[%clk 0:02:37.2]}
14. Rfe1 {[%clk 0:02:20.1]} 14... b5 {[%clk 0:02:36.7]} 15. Re3 {[%clk
0:02:16.8]} 15... Bb7 {[%clk 0:02:27.6]} 16. Rh3 {[%clk 0:02:13.2]} 16... g6
{[%clk 0:02:26.7]} 17. Qg3 {[%clk 0:02:09.6]} 17... Rfc8 {[%clk 0:02:14.3]} 18.
Bg5 {[%clk 0:02:06.9]} 18... Rc4 {[%clk 0:02:09.2]} 19. c3 {[%clk 0:02:03]}
19... Rac8 {[%clk 0:02:04.6]} 20. Qh4 {[%clk 0:01:59.7]} 20... Bxg5 {[%clk
0:01:56.6]} 21. Qxh7+ {[%clk 0:01:56.3]} 21... Kf8 {[%clk 0:01:56.2]} 22. Nf3
{[%clk 0:01:48.5]} 22... Ke7 {[%clk 0:01:22.9]} 23. Nxg5 {[%clk 0:01:44.3]}
23... Rf8 {[%clk 0:01:22.8]} 24. Rf3 {[%clk 0:01:39.5]} 24... Ke8 {[%clk
0:01:15.9]} 25. Rf6 {[%clk 0:01:30.7]} 25... Rg4 {[%clk 0:01:06.1]} 26. h4
{[%clk 0:01:17.3]} 26... d4 {[%clk 0:01:04.2]} 27. f3 {[%clk 0:01:13.7]} 27...
Rg3 {[%clk 0:00:53.5]} 28. Kh2 {[%clk 0:01:04.4]} 28... Rxg5 {[%clk 0:00:45.2]}
29. hxg5 {[%clk 0:01:04.3]} 29... dxc3 {[%clk 0:00:44.5]} 30. bxc3 {[%clk
0:01:00.8]} 30... Qd5 {[%clk 0:00:34.4]} 31. Qh4 {[%clk 0:00:55.7]} 31... Qxe5+
{[%clk 0:00:34]} 32. Qf4 {[%clk 0:00:50.9]} 32... Rh8+ {[%clk 0:00:34]} 33. Kg1
{[%clk 0:00:43.8]} 33... Qc5+ {[%clk 0:00:33]} 34. Qd4 {[%clk 0:00:40.7]} 34...
Qxg5 {[%clk 0:00:32.9]} 35. Rxe6+ {[%clk 0:00:36.7]} 35... fxe6 {[%clk 0:00:31]}
36. Qxh8+ {[%clk 0:00:34.5]} 36... Kd7 {[%clk 0:00:29.3]} 37. Qg7+ {[%clk
0:00:33.2]} 37... Kc6 {[%clk 0:00:28.8]} 38. Rd1 {[%clk 0:00:31.3]} 38... Kb6
{[%clk 0:00:28.4]} 39. Qd4+ {[%clk 0:00:29]} 39... Ka5 {[%clk 0:00:27.1]} 40.
Qd8+ {[%clk 0:00:27.3]} 40... Ka4 {[%clk 0:00:26.8]} 41. Qxg5 {[%clk 0:00:26.2]}
1-0

[Event "*** Titled Tuesday Blitz"]
[Site "Chess.com"]
[Date "2021.02.09"]
[Round "3"]
[White "Chessbard1972"]
[Black "Misi_95"]
[Result "0-1"]
[WhiteElo "2404"]
[BlackElo "2599"]
[TimeControl "180+1"]
[EndTime "10:28:34 PST"]
[Termination "Misi_95 won by resignation"]

1. d4 {[%clk 0:03:00.9]} 1... Nf6 {[%clk 0:02:59.4]} 2. Nf3 {[%clk 0:02:58.3]}
2... b5 {[%clk 0:02:58.4]} 3. c3 {[%clk 0:02:57.3]} 3... Bb7 {[%clk 0:02:58]} 4.
g3 {[%clk 0:02:56.7]} 4... e6 {[%clk 0:02:57.2]} 5. Bg2 {[%clk 0:02:56.7]} 5...
c5 {[%clk 0:02:57.2]} 6. O-O {[%clk 0:02:56.2]} 6... a5 {[%clk 0:02:40]} 7. a4
{[%clk 0:02:54.1]} 7... b4 {[%clk 0:02:39.5]} 8. Bf4 {[%clk 0:02:50.2]} 8...
cxd4 {[%clk 0:02:32.8]} 9. Nxd4 {[%clk 0:02:40.2]} 9... Bxg2 {[%clk 0:02:32.1]}
10. Kxg2 {[%clk 0:02:40.4]} 10... Nc6 {[%clk 0:02:12.1]} 11. Nb5 {[%clk
0:02:26.7]} 11... e5 {[%clk 0:02:04.9]} 12. Bg5 {[%clk 0:02:25.9]} 12... Rc8
{[%clk 0:02:01.4]} 13. Nd6+ {[%clk 0:02:18.8]} 13... Bxd6 {[%clk 0:02:00.6]} 14.
Qxd6 {[%clk 0:02:18.4]} 14... Qe7 {[%clk 0:02:01.5]} 15. Qd1 {[%clk 0:02:05.2]}
15... O-O {[%clk 0:02:00.7]} 16. c4 {[%clk 0:02:00]} 16... e4 {[%clk 0:01:42]}
17. Nd2 {[%clk 0:01:44.4]} 17... Rfe8 {[%clk 0:01:40.4]} 18. Nb3 {[%clk
0:01:29.6]} 18... h6 {[%clk 0:01:36.6]} 19. Bxf6 {[%clk 0:01:27.5]} 19... Qxf6
{[%clk 0:01:37.5]} 20. Rb1 {[%clk 0:01:09]} 20... Ne5 {[%clk 0:01:35.7]} 21. c5
{[%clk 0:01:06.1]} 21... e3 {[%clk 0:01:30.4]} 22. f3 {[%clk 0:00:59.9]} 22...
Nc4 {[%clk 0:01:19.6]} 23. Qc2 {[%clk 0:00:54.7]} 23... Qa6 {[%clk 0:01:11]} 24.
Rfe1 {[%clk 0:00:47.9]} 24... d6 {[%clk 0:01:04.1]} 25. Rbc1 {[%clk 0:00:18.4]}
25... Ne5 {[%clk 0:01:00.5]} 26. Qf5 {[%clk 0:00:16.7]} 26... dxc5 {[%clk
0:00:55.8]} 27. Rxc5 {[%clk 0:00:16.1]} 27... Rxc5 {[%clk 0:00:54.8]} 28. Nxc5
{[%clk 0:00:16.1]} 28... Qc4 {[%clk 0:00:55.2]} 29. Ne4 {[%clk 0:00:12.8]} 29...
Qc7 {[%clk 0:00:35.1]} 30. Rd1 {[%clk 0:00:11.5]} 30... Qc4 {[%clk 0:00:23.3]}
31. Re1 {[%clk 0:00:11]} 31... Qc8 {[%clk 0:00:23]} 32. Rd1 {[%clk 0:00:10.8]}
32... Qxf5 {[%clk 0:00:22.4]} 0-1

[Event "*** Titled Tuesday Blitz"]
[Site "Chess.com"]
[Date "2021.02.09"]
[Round "3"]
[White "floplover"]
[Black "Synctel"]
[Result "1-0"]
[WhiteElo "2287"]
[BlackElo "1997"]
[TimeControl "180+1"]
[EndTime "10:28:34 PST"]
[Termination "floplover won by resignation"]

1. d4 {[%clk 0:02:55.4]} 1... Nf6 {[%clk 0:02:58.6]} 2. Bf4 {[%clk 0:02:56]}
2... d5 {[%clk 0:02:57.6]} 3. Nf3 {[%clk 0:02:53.7]} 3... e6 {[%clk 0:02:55.8]}
4. e3 {[%clk 0:02:53.9]} 4... Bd6 {[%clk 0:02:55.8]} 5. Bxd6 {[%clk 0:02:42.1]}
5... cxd6 {[%clk 0:02:54.7]} 6. Bd3 {[%clk 0:02:40.9]} 6... Nc6 {[%clk
0:02:53.2]} 7. c3 {[%clk 0:02:40.7]} 7... e5 {[%clk 0:02:51.2]} 8. dxe5 {[%clk
0:02:33.3]} 8... dxe5 {[%clk 0:02:52.1]} 9. Bb5 {[%clk 0:02:30.4]} 9... Bg4
{[%clk 0:02:42.1]} 10. h3 {[%clk 0:02:28.2]} 10... Bxf3 {[%clk 0:02:26.3]} 11.
Qxf3 {[%clk 0:02:29.1]} 11... O-O {[%clk 0:02:20.6]} 12. O-O {[%clk 0:02:25.8]}
12... a6 {[%clk 0:02:10.1]} 13. Ba4 {[%clk 0:02:21.5]} 13... e4 {[%clk
0:02:07.7]} 14. Qe2 {[%clk 0:02:14.1]} 14... Ne5 {[%clk 0:02:05.3]} 15. Nd2
{[%clk 0:02:10.8]} 15... Nd3 {[%clk 0:01:55]} 16. Rab1 {[%clk 0:02:01.7]} 16...
Nd7 {[%clk 0:01:50.9]} 17. Bc2 {[%clk 0:01:58.9]} 17... N7e5 {[%clk 0:01:49.9]}
18. f4 {[%clk 0:01:40.4]} 18... exf3 {[%clk 0:01:41.2]} 19. Nxf3 {[%clk
0:01:39.9]} 19... Nxf3+ {[%clk 0:01:26]} 20. Qxf3 {[%clk 0:01:40.8]} 20... Ne5
{[%clk 0:01:10.5]} 21. Bxh7+ {[%clk 0:01:39]} 21... Kxh7 {[%clk 0:01:08.3]} 22.
Qh5+ {[%clk 0:01:39.1]} 22... Kg8 {[%clk 0:01:09]} 23. Qxe5 {[%clk 0:01:40]}
23... Re8 {[%clk 0:01:08.4]} 24. Qf4 {[%clk 0:01:37.7]} 24... Qe7 {[%clk
0:01:06]} 25. Rbd1 {[%clk 0:01:31.2]} 25... Rad8 {[%clk 0:01:05.5]} 26. Rf3
{[%clk 0:01:30.1]} 26... Rd6 {[%clk 0:01:04.6]} 27. Qd4 {[%clk 0:01:19.3]} 27...
Qg5 {[%clk 0:00:42.3]} 28. Rdf1 {[%clk 0:01:15.8]} 28... Rg6 {[%clk 0:00:29.4]}
29. R1f2 {[%clk 0:01:15.8]} 29... Re4 {[%clk 0:00:20.2]} 30. Qa7 {[%clk
0:01:06.2]} 30... Re7 {[%clk 0:00:11]} 31. Rf5 {[%clk 0:00:58.5]} 31... Qg3
{[%clk 0:00:09.9]} 32. R5f3 {[%clk 0:00:42.4]} 32... Qg5 {[%clk 0:00:09.3]} 33.
Qc5 {[%clk 0:00:40.5]} 33... Kh7 {[%clk 0:00:04.3]} 34. Rf5 {[%clk 0:00:36.7]}
34... Qg3 {[%clk 0:00:03.9]} 35. Qxe7 {[%clk 0:00:34.8]} 1-0

[Event "*** Titled Tuesday Blitz"]
[Site "Chess.com"]
[Date "2021.02.09"]
[Round "3"]
[White "salomez"]
[Black "HackingKid98"]
[Result "0-1"]
[WhiteElo "2198"]
[BlackElo "2480"]
[TimeControl "180+1"]
[EndTime "10:28:35 PST"]
[Termination "HackingKid98 won on time"]

1. e4 {[%clk 0:03:00.9]} 1... c6 {[%clk 0:02:59.5]} 2. d4 {[%clk 0:03:00.6]}
2... d5 {[%clk 0:02:59.6]} 3. e5 {[%clk 0:03:00.6]} 3... Bf5 {[%clk 0:02:58.7]}
4. Nf3 {[%clk 0:03:01]} 4... e6 {[%clk 0:02:58.3]} 5. Be2 {[%clk 0:03:01.5]}
5... Ne7 {[%clk 0:02:43]} 6. O-O {[%clk 0:03:01.8]} 6... Ng6 {[%clk 0:02:43.1]}
7. Nbd2 {[%clk 0:03:00.6]} 7... f6 {[%clk 0:02:40.7]} 8. exf6 {[%clk 0:02:50.5]}
8... Qxf6 {[%clk 0:02:41.6]} 9. Nb3 {[%clk 0:02:49.6]} 9... Nd7 {[%clk
0:02:40.1]} 10. Bg5 {[%clk 0:02:41.7]} 10... Qf7 {[%clk 0:02:40]} 11. Re1 {[%clk
0:02:38]} 11... Bd6 {[%clk 0:02:39.1]} 12. Qd2 {[%clk 0:02:20.8]} 12... O-O
{[%clk 0:02:37.2]} 13. c4 {[%clk 0:02:14.3]} 13... Be4 {[%clk 0:02:26.6]} 14.
Be3 {[%clk 0:01:47.1]} 14... Nf4 {[%clk 0:02:21.4]} 15. Bxf4 {[%clk 0:01:30.4]}
15... Bxf4 {[%clk 0:02:22.3]} 16. Qb4 {[%clk 0:01:26]} 16... b6 {[%clk
0:02:13.9]} 17. Nbd2 {[%clk 0:01:21.1]} 17... Bg6 {[%clk 0:02:05.9]} 18. Nf1
{[%clk 0:01:18.7]} 18... Rae8 {[%clk 0:01:55.8]} 19. Ng3 {[%clk 0:01:18.2]}
19... e5 {[%clk 0:01:47.4]} 20. cxd5 {[%clk 0:01:06.3]} 20... cxd5 {[%clk
0:01:32.1]} 21. dxe5 {[%clk 0:01:00.3]} 21... Nxe5 {[%clk 0:01:24]} 22. Rad1
{[%clk 0:00:55.7]} 22... Kh8 {[%clk 0:01:03.4]} 23. Qd4 {[%clk 0:00:49.8]} 23...
Be4 {[%clk 0:00:35.9]} 24. Nxe4 {[%clk 0:00:19.9]} 24... dxe4 {[%clk 0:00:36.8]}
25. Qxe4 {[%clk 0:00:14]} 25... Ng4 {[%clk 0:00:36.7]} 26. Qd5 {[%clk
0:00:10.1]} 26... Bxh2+ {[%clk 0:00:36.1]} 27. Nxh2 {[%clk 0:00:04.2]} 27...
Qxf2+ {[%clk 0:00:35.9]} 28. Kh1 {[%clk 0:00:04.1]} 28... Qh4 {[%clk 0:00:33.3]}
29. Bxg4 {[%clk 0:00:01.5]} 29... Rxe1+ {[%clk 0:00:32.3]} 30. Rxe1 {[%clk
0:00:01.5]} 30... Qxe1+ {[%clk 0:00:33.2]} 31. Nf1 {[%clk 0:00:01.7]} 31...
Rxf1+ {[%clk 0:00:32.4]} 32. Kh2 {[%clk 0:00:01.7]} 32... Qh4+ {[%clk
0:00:33.3]} 33. Bh3 {[%clk 0:00:01.1]} 33... Qf4+ {[%clk 0:00:33]} 0-1

[Event "*** Titled Tuesday Blitz"]
[Site "Chess.com"]
[Date "2021.02.09"]
[Round "3"]
[White "NikolasTheiss"]
[Black "annacramling"]
[Result "1-0"]
[WhiteElo "2324"]
[BlackElo "2099"]
[TimeControl "180+1"]
[EndTime "10:28:35 PST"]
[Termination "NikolasTheiss won by resignation"]

1. h4 {[%clk 0:03:00.9]} 1... c5 {[%clk 0:02:57.4]} 2. h5 {[%clk 0:03:00.5]}
2... h6 {[%clk 0:02:54.2]} 3. Nf3 {[%clk 0:02:56.2]} 3... d5 {[%clk 0:02:54]} 4.
d4 {[%clk 0:02:56.2]} 4... e6 {[%clk 0:02:50.8]} 5. Nc3 {[%clk 0:02:52.6]} 5...
Nc6 {[%clk 0:02:48.2]} 6. Bf4 {[%clk 0:02:41.5]} 6... a6 {[%clk 0:02:42.9]} 7.
e3 {[%clk 0:02:11.3]} 7... Nf6 {[%clk 0:02:37.8]} 8. Ne5 {[%clk 0:02:05.7]} 8...
Be7 {[%clk 0:02:32.2]} 9. Bd3 {[%clk 0:01:56.8]} 9... cxd4 {[%clk 0:02:07.7]}
10. exd4 {[%clk 0:01:57.7]} 10... Nxd4 {[%clk 0:02:04.5]} 11. Nxf7 {[%clk
0:01:57.6]} 11... Kxf7 {[%clk 0:01:37.2]} 12. Bg6+ {[%clk 0:01:57.3]} 12... Kf8
{[%clk 0:01:02.1]} 13. Qxd4 {[%clk 0:01:58.2]} 13... Bd7 {[%clk 0:00:53.2]} 14.
O-O-O {[%clk 0:01:17.7]} 14... Be8 {[%clk 0:00:51.3]} 15. Rde1 {[%clk
0:01:14.9]} 15... Qd7 {[%clk 0:00:28.3]} 16. Qe5 {[%clk 0:01:09.4]} 16... Bf7
{[%clk 0:00:20.9]} 17. Ne2 {[%clk 0:01:01.7]} 17... Rc8 {[%clk 0:00:20.3]} 18.
Nd4 {[%clk 0:01:00.7]} 18... Ng4 {[%clk 0:00:14]} 19. Nxe6+ {[%clk 0:00:47.1]}
19... Bxe6 {[%clk 0:00:12.2]} 20. Qxe6 {[%clk 0:00:48]} 20... Qxe6 {[%clk
0:00:12.2]} 21. Rxe6 {[%clk 0:00:48.9]} 21... Nxf2 {[%clk 0:00:05]} 22. Rf1
{[%clk 0:00:48.2]} 22... Ng4 {[%clk 0:00:04]} 23. Bd6+ {[%clk 0:00:32]} 23...
Nf6 {[%clk 0:00:04.1]} 24. Bxe7+ {[%clk 0:00:30.6]} 24... Kg8 {[%clk 0:00:02.4]}
25. Bxf6 {[%clk 0:00:22.3]} 25... gxf6 {[%clk 0:00:03.3]} 26. Rexf6 {[%clk
0:00:22.9]} 26... Rc7 {[%clk 0:00:02.1]} 27. Rf8+ {[%clk 0:00:22.1]} 27... Kg7
{[%clk 0:00:02.6]} 28. R8f7+ {[%clk 0:00:16.5]} 28... Rxf7 {[%clk 0:00:02]} 29.
Rxf7+ {[%clk 0:00:17.4]} 29... Kg8 {[%clk 0:00:02.5]} 30. Rxb7 {[%clk
0:00:17.7]} 1-0

[Event "*** Titled Tuesday Blitz"]
[Site "Chess.com"]
[Date "2021.02.09"]
[Round "3"]
[White "FairChess_on_YouTube"]
[Black "Szparu"]
[Result "1-0"]
[WhiteElo "2951"]
[BlackElo "2687"]
[TimeControl "180+1"]
[EndTime "10:28:38 PST"]
[Termination "FairChess_on_YouTube won by resignation"]

1. d4 {[%clk 0:03:00.9]} 1... Nf6 {[%clk 0:02:57]} 2. Bg5 {[%clk 0:03:00.4]}
2... d5 {[%clk 0:02:53.5]} 3. Nd2 {[%clk 0:02:59.9]} 3... c5 {[%clk 0:02:43.9]}
4. dxc5 {[%clk 0:02:59.4]} 4... Na6 {[%clk 0:02:27.9]} 5. e4 {[%clk 0:02:51.8]}
5... Nxc5 {[%clk 0:02:22.4]} 6. exd5 {[%clk 0:02:51.5]} 6... Qxd5 {[%clk
0:01:44.8]} 7. Ngf3 {[%clk 0:02:50.9]} 7... Bg4 {[%clk 0:01:43.1]} 8. h3 {[%clk
0:02:32.1]} 8... Bxf3 {[%clk 0:01:40.2]} 9. Nxf3 {[%clk 0:02:31.4]} 9... O-O-O
{[%clk 0:01:38.6]} 10. Qxd5 {[%clk 0:02:23.2]} 10... Nxd5 {[%clk 0:01:37.5]} 11.
O-O-O {[%clk 0:02:20.8]} 11... f6 {[%clk 0:01:36.4]} 12. Bc4 {[%clk 0:02:13]}
12... Nb6 {[%clk 0:01:33.6]} 13. Rxd8+ {[%clk 0:02:09.1]} 13... Kxd8 {[%clk
0:01:33.6]} 14. Rd1+ {[%clk 0:02:03]} 14... Kc8 {[%clk 0:01:33.4]} 15. Be3
{[%clk 0:02:01.9]} 15... Nxc4 {[%clk 0:01:15.8]} 16. Bxc5 {[%clk 0:02:01.8]}
16... b6 {[%clk 0:01:15.7]} 17. Bb4 {[%clk 0:01:54.5]} 17... e5 {[%clk
0:01:13.5]} 18. Bxf8 {[%clk 0:01:53.6]} 18... Rxf8 {[%clk 0:01:13.1]} 19. b3
{[%clk 0:01:53.9]} 19... Na5 {[%clk 0:01:12.7]} 20. Nd2 {[%clk 0:01:49.3]} 20...
Kc7 {[%clk 0:01:08.5]} 21. Ne4 {[%clk 0:01:48.5]} 21... Nb7 {[%clk 0:01:07.7]}
22. c4 {[%clk 0:01:41.3]} 22... Rd8 {[%clk 0:01:02.8]} 23. Rxd8 {[%clk
0:01:40.1]} 23... Nxd8 {[%clk 0:01:02.5]} 24. Nc3 {[%clk 0:01:37.8]} 24... Ne6
{[%clk 0:00:59.9]} 25. Nb5+ {[%clk 0:01:37.6]} 25... Kb7 {[%clk 0:00:54.7]} 26.
Kd2 {[%clk 0:01:35.2]} 26... Nf4 {[%clk 0:00:53.1]} 27. Nd6+ {[%clk 0:01:30.8]}
27... Kc6 {[%clk 0:00:52.2]} 28. Nf5 {[%clk 0:01:28.3]} 28... Nxg2 {[%clk
0:00:51.2]} 29. Nxg7 {[%clk 0:01:27.3]} 29... Nf4 {[%clk 0:00:49.1]} 30. h4
{[%clk 0:01:26.4]} 30... Kc5 {[%clk 0:00:37]} 31. Ne8 {[%clk 0:01:20.4]} 31...
Ng2 {[%clk 0:00:13.4]} 32. h5 {[%clk 0:00:57.8]} 32... Nf4 {[%clk 0:00:09.3]}
33. Nxf6 {[%clk 0:00:55.6]} 33... h6 {[%clk 0:00:09.5]} 34. Ke3 {[%clk
0:00:50.3]} 34... Kb4 {[%clk 0:00:06.8]} 35. Nd5+ {[%clk 0:00:42.1]} 35... Nxd5+
{[%clk 0:00:06.8]} 36. cxd5 {[%clk 0:00:43]} 36... Kc5 {[%clk 0:00:06.9]} 37.
Ke4 {[%clk 0:00:42.5]} 37... Kd6 {[%clk 0:00:07.2]} 38. b4 {[%clk 0:00:41.8]}
38... a6 {[%clk 0:00:06.6]} 39. a4 {[%clk 0:00:41.6]} 39... b5 {[%clk
0:00:06.4]} 40. axb5 {[%clk 0:00:41.8]} 40... axb5 {[%clk 0:00:05.7]} 41. f3
{[%clk 0:00:42.3]} 1-0

[Event "*** Titled Tuesday Blitz"]
[Site "Chess.com"]
[Date "2021.02.09"]
[Round "3"]
[White "anon102030"]
[Black "woodhy"]
[Result "0-1"]
[WhiteElo "2723"]
[BlackElo "2462"]
[TimeControl "180+1"]
[EndTime "10:28:38 PST"]
[Termination "woodhy won on time"]

1. e4 {[%clk 0:02:29.4]} 1... e6 {[%clk 0:02:59.7]} 2. d3 {[%clk 0:02:29.4]}
2... d5 {[%clk 0:03:00.3]} 3. Nd2 {[%clk 0:02:29.7]} 3... Nf6 {[%clk 0:03:00.7]}
4. g3 {[%clk 0:02:29.9]} 4... c5 {[%clk 0:03:01.1]} 5. Bg2 {[%clk 0:02:29.9]}
5... b6 {[%clk 0:03:01.6]} 6. Ngf3 {[%clk 0:02:28.9]} 6... Bb7 {[%clk
0:03:01.9]} 7. O-O {[%clk 0:02:29.7]} 7... Be7 {[%clk 0:03:02.2]} 8. Qe2 {[%clk
0:02:29.7]} 8... Nc6 {[%clk 0:03:02.6]} 9. b3 {[%clk 0:02:30.4]} 9... Qc7 {[%clk
0:03:01.6]} 10. Bb2 {[%clk 0:02:30.7]} 10... Rd8 {[%clk 0:03:01.1]} 11. Rfe1
{[%clk 0:02:31.1]} 11... dxe4 {[%clk 0:03:00.3]} 12. Nxe4 {[%clk 0:02:29.2]}
12... Nxe4 {[%clk 0:02:59.3]} 13. dxe4 {[%clk 0:02:30.1]} 13... O-O {[%clk
0:02:59.1]} 14. Rad1 {[%clk 0:02:29.4]} 14... Nb4 {[%clk 0:02:58.4]} 15. a3
{[%clk 0:02:28.5]} 15... Ba6 {[%clk 0:02:57.5]} 16. c4 {[%clk 0:02:24.1]} 16...
Nc6 {[%clk 0:02:56.2]} 17. Qe3 {[%clk 0:02:19]} 17... Rxd1 {[%clk 0:02:49.9]}
18. Rxd1 {[%clk 0:02:19.9]} 18... Rd8 {[%clk 0:02:49.9]} 19. Rxd8+ {[%clk
0:02:12.5]} 19... Qxd8 {[%clk 0:02:50.8]} 20. Qd2 {[%clk 0:02:12.5]} 20... Qxd2
{[%clk 0:02:38.5]} 21. Nxd2 {[%clk 0:02:13.4]} 21... Bf6 {[%clk 0:02:30]} 22.
Bxf6 {[%clk 0:01:51.4]} 22... gxf6 {[%clk 0:02:30.9]} 23. f4 {[%clk 0:01:43.4]}
23... Nd4 {[%clk 0:02:25.8]} 24. Kf2 {[%clk 0:01:43.2]} 24... Kf8 {[%clk
0:02:24.7]} 25. e5 {[%clk 0:01:37.8]} 25... fxe5 {[%clk 0:02:21.6]} 26. fxe5
{[%clk 0:01:38.7]} 26... Ke7 {[%clk 0:02:18.7]} 27. b4 {[%clk 0:01:26.2]} 27...
Bc8 {[%clk 0:02:08.4]} 28. bxc5 {[%clk 0:01:16]} 28... bxc5 {[%clk 0:02:09.3]}
29. Ne4 {[%clk 0:01:12.9]} 29... Ba6 {[%clk 0:01:14.7]} 30. Bf1 {[%clk
0:01:01.8]} 30... Nb3 {[%clk 0:01:08.8]} 31. Ke3 {[%clk 0:01:00.1]} 31... Bb7
{[%clk 0:01:08.5]} 32. Nf6 {[%clk 0:00:42.9]} 32... Nd4 {[%clk 0:00:57.9]} 33.
Bd3 {[%clk 0:00:36.4]} 33... Nf3 {[%clk 0:00:53.7]} 34. h4 {[%clk 0:00:35.3]}
34... Nxe5 {[%clk 0:00:50.6]} 35. Nxh7 {[%clk 0:00:34.1]} 35... f6 {[%clk
0:00:49.2]} 36. h5 {[%clk 0:00:21.6]} 36... Kf7 {[%clk 0:00:47.5]} 37. h6 {[%clk
0:00:04.7]} 37... Ng4+ {[%clk 0:00:41.4]} 38. Kd2 {[%clk 0:00:03.1]} 38... Nxh6
{[%clk 0:00:42.3]} 39. Bc2 {[%clk 0:00:02]} 39... Kg7 {[%clk 0:00:40.3]} 40. Bd3
{[%clk 0:00:01.3]} 40... Nf5 {[%clk 0:00:39.9]} 0-1